Cogmind - Beta 15 @@@ ROGUE MODE // 2025.10.08 @ 17:12:26 Player: weedlord420 Result: Destroyed by D-53 Grenadier with Mini Grenade Launcher Performance ------------- Evolutions (0) 0 Regions Visited (2) 400 Robots Destroyed (18) 90 Value Destroyed (355) 355 Prototype IDs (0) 0 Alien Tech Used (0) 0 Bonus (-39) -39 TOTAL SCORE: 806 Bonus ------- Friendly Fire -39 Cogmind --------- Core Integrity 0/250 Matter 147/300 Energy 94/100 System Corruption 0% Temperature Cool (0) Movement Core (350) Ox6 Location -10/Mines Parts ------- > --- POWER (1) -------- (None) > --- PROPULSION (2) --- (None) > --- UTILITY (2) ------ Large Storage Unit Structural Scanner > --- WEAPON (2) ------- (None) > --- INVENTORY (15) --- Light Treads Light Treads Compact Wheel Compact Wheel Improved Heat Sink Small Storage Unit Medium Storage Unit Machine Analyzer Power Shielding Small Laser Grenade Launcher Datajack Mining Claw Peak State ------------ > --- POWER ------------ Light Nuclear Core > --- PROPULSION ------- Light Treads Wheel > --- UTILITY ---------- Large Storage Unit Structural Scanner > --- WEAPON ----------- Assault Rifle Assault Rifle > --- INVENTORY -------- Light Treads Light Treads Compact Wheel Compact Wheel Improved Heat Sink Small Storage Unit Medium Storage Unit Machine Analyzer Power Shielding Small Laser Assault Rifle Grenade Launcher Datajack Mining Claw [Rating: 10] Favorites ----------- Power Ion Engine Engine Ion Engine Power Core Light Nuclear Core Propulsion Light Treads Treads Light Treads Wheel Compact Wheel Utility Large Storage Unit Device Structural Scanner Storage Large Storage Unit Weapon Assault Rifle Energy Gun Small Laser Ballistic Gun Assault Rifle Launcher Grenade Launcher Slashing Weapon Mining Claw Build | -11 -10 -10 ------- Run | Yrd Mat Min Slots Evolved . | . . . Power . | . . . Propulsion . | . . . Utility . | . . . Weapon . | . . . Parts Attached 16 | 9 5 2 Power 2 | 1 . 1 Engine 1 | 1 . . Core 1 | . . 1 Reactor . | . . . Propulsion 5 | 4 . 1 Treads 2 | 2 . . Leg . | . . . Wheel 3 | 2 . 1 Hover . | . . . Flight . | . . . Utility 3 | 1 2 . Device 1 | . 1 . Storage 2 | 1 1 . Processor . | . . . Hackware . | . . . Protection . | . . . Artifact . | . . . Weapon 6 | 3 3 . Energy Gun 1 | 1 . . Energy Cannon . | . . . Ballistic Gun 3 | 2 1 . Ballistic Cannon . | . . . Launcher 1 | . 1 . Special Weapon . | . . . Impact Weapon . | . . . Slashing Weapon 1 | . 1 . Piercing Weapon . | . . . Special Melee Weapon . | . . . Unidentified Prototypes . | . . . Parts Lost 7 | . . 7 Power 2 | . . 2 Propulsion 2 | . . 2 Utility . | . . . Weapon 3 | . . 3 Highest Loss Streak 6 | . . 6 To Critical Strikes . | . . . Average Backups 11 | 3 11 14 Power . | . . . Propulsion 3 | 1 3 4 Utility 3 | . 3 5 Weapon 3 | . 3 4 Tool/Special . | . . . Unused Backups 6 | . . 6 Power . | . . . Propulsion 1 | . . 1 Utility 4 | . . 4 Weapon . | . . . Tool/Special 1 | . . 1 Average Slot Usage (%) 85 | . 85 89 Engine 12 | . 14 2 Treads 24 | . 25 13 Wheel 3 | . 2 14 Device 1 | . . 14 Storage 14 | . 14 14 Ballistic Gun 25 | . 25 25 Launcher 2 | . 2 1 Peak Build Rating 10 | 6 9 10 Average Rating 7 | 4 7 8 On Entrance 5 | . 6 9 Naked Turns . | . . . Heaviest Build 31 | 14 30 31 Greatest Support 40 | 40 40 10 Greatest Overweight (x) 6 | . . 6 Average Overweight (x) . | . . 2 Largest Inventory Capacity 15 | 8 15 15 Average Capacity 13 | 6 13 15 Most Carried 15 | 5 15 15 Average Carried 11 | 3 12 14 Final Capacity 15 | 8 15 15 Final Carried 15 | 3 15 13 Class Distribution -------------------- 100% | Mutant Dominant Class ---------------- Mutant | -10/Materials Mutant | -10/Mines Resources | -11 -10 -10 ----------- Run | Yrd Mat Min Matter Collected 727 | 222 470 35 Remotely . | . . . Salvage Created 539 | . 483 56 Parts 35 | . 35 . Haulers Intercepted 2 | . 2 . Recyclers Shooed 1 | . 1 . Parts Field Recycled . | . . . Retrieved Matter . | . . . Parts Self-Destructed . | . . . Prevented . | . . . Kills | -11 -10 -10 ------- Run | Yrd Mat Min Combat Hostiles Destroyed 27 | . 9 18 Guns 12 | . 8 4 AOE 15 | . 1 14 Classes Destroyed 8 | . 7 1 Worker 2 | . 2 . Builder 1 | . 1 . Hauler 2 | . 2 . Mechanic 1 | . 1 . Watcher 3 | . 3 . Swarmer 3 | . 3 . Grunt 6 | . 6 . Assembled 18 | . . 18 Best Kill Streak 17 | . 4 17 Combat Bots Only 17 | . 4 17 Max Kills in Single Turn 4 | . 1 4 Gunslinging . | . . . Exploded 4 | . 1 4 Melee . | . . . Uniques/NPCs Destroyed . | . . . Combat | -11 -10 -10 -------- Run | Yrd Mat Min Hostile Shots Fired 87 | . 48 39 Missed 28 | . 18 10 Hits 59 | . 30 29 Melee 3 | . . 3 Projectile 56 | . 30 26 AOE 10 | . . 10 Critical Strikes 1 | . 1 . Damage Taken 1081 | . 372 709 Core 295 | . 103 192 Absorbed by Shields . | . . . Regen/Repaired (Parts) 69 | . 69 . Core Remaining (%) 100 | 100 . . Volleys Fired 67 | . 46 21 Largest 2 | . 2 2 Hottest 50 | . 50 40 Shots Fired 120 | . 88 32 Gun 103 | . 80 23 Cannon . | . . . Launcher 17 | . 8 9 Special . | . . . Kinetic 103 | . 80 23 Thermal . | . . . Explosive 17 | . 8 9 Electromagnetic . | . . . Robot Hit Streak 12 | . 12 5 Robot Miss Streak 4 | . 4 3 Penetration Max . | . . . Secondary Targets . | . . . Shots Hit Robots 72 | . 57 15 Core Hits 64 | . 29 35 Critical Kills . | . . . Critical Parts Destroyed . | . . . Critical Strikes . | . . . Melee Attacks 3 | . 3 . Impact . | . . . Slashing 3 | . 3 . Piercing . | . . . Sneak Attacks . | . . . Combat Hostiles . | . . . Follow-up Attacks . | . . . Damage Inflicted 2330 | . 976 1354 Guns 874 | . 714 160 Cannons . | . . . Explosions 1452 | . 258 1194 Melee . | . . . Ramming 4 | . 4 . Kinetic 874 | . 714 160 Thermal . | . . . Explosive 1452 | . 258 1194 Electromagnetic . | . . . Impact . | . . . Slashing . | . . . Piercing . | . . . Highest Corruption . | . . . Average Corruption . | . . . Corruption Purged . | . . . Corruption Blocked . | . . . Overload Shots . | . . . Overflow Damage 38 | . 11 27 Projectiles . | . . . Explosions 38 | . 11 27 Melee . | . . . Knockbacks . | . . . Impact . | . . . Kinetic . | . . . Secondary . | . . . Self-Inflicted Damage 20 | . 20 . Shots 1 | . 1 . Rammed 1 | . 1 . Targets Rammed 1 | . 1 . Kicked . | . . . Crushed . | . . . Highest Temperature 22 | . 22 . Average Temperature 6 | . 6 . Received Heat Transfer 183 | . 183 . Siege Activations . | . . . Martial Activations . | . . . Shielding Activations . | . . . Robots Disrupted . | . . . Combat Hostiles . | . . . Robots Corrupted . | . . . Combat Hostiles . | . . . Parts Fried . | . . . Impact Corruptions . | . . . Robots Melted . | . . . Combat Hostiles . | . . . Parts Melted . | . . . Heat Transferred . | . . . Parts Sabotaged . | . . . Parts Stolen . | . . . Parts Stripped . | . . . Power Chain Reactions . | . . . Alert | -11 -10 -10 ------- Run | Yrd Mat Min Maximum Alert Level . | . . . Low Security (%) 100 | 100 100 100 Level 1 . | . . . Level 2 . | . . . Level 3 . | . . . Level 4 . | . . . Level 5 . | . . . High Security . | . . . Max Security . | . . . Peak Influence 150 | . 150 23 Initial 23 | . . 23 Average 42 | . 48 3 Influence Increases 457 | . 425 32 Destroy 0b10 Robot/C 180 | . 180 . Destroy 0b10 Robot/NC 45 | . 45 . Destroy Leader 50 | . 50 . Successful Hack 27 | . 27 . Disable Machine 15 | . 15 . Destroy Structure 80 | . 48 32 Lose Combat Pursuer 60 | . 60 . Influence Decreases 457 | . 365 92 Entered New Map 37 | . . 37 Time Decay 332 | . 310 22 Lost Part 3 | . . 3 Lost Ally 30 | . . 30 Purge Threat 55 | . 55 . Squads Dispatched . | . . . Investigation . | . . . Extermination . | . . . Reinforcement . | . . . Assault . | . . . Garrison . | . . . Intercept . | . . . Searches Triggered . | . . . Construction Impeded . | . . . Haulers Reinforced . | . . . Active Scanning Responses . | . . . Cargo Convoy Interrupts . | . . . Stealth | -11 -10 -10 --------- Run | Yrd Mat Min Distress Signals . | . . . Communications Jammed . | . . . Distress Signals . | . . . Times Spotted 38 | . 16 22 Peak Tracking Total 10 | . 4 10 Tactical Retreats 3 | . 2 1 Traps | -11 -10 -10 ------- Run | Yrd Mat Min Traps Triggered . | . . . Indirectly . | . . . Trap Hack Attempts . | . . . Triggered . | . . . Disarmed . | . . . Reprogrammed . | . . . Reused . | . . . Traps Extracted . | . . . Installed . | . . . Triggered . | . . . Machines | -11 -10 -10 ---------- Run | Yrd Mat Min Machines Disabled 1 | . 1 . Max in Single Turn 1 | . 1 . Machines Repaired . | . . . Machines Dismantled . | . . . Machines Sabotaged . | . . . Overloaded Fab Kills . | . . . Hacking | -11 -10 -10 --------- Run | Yrd Mat Min Machines Accessed 6 | . 6 . Terminals 5 | . 5 . Fabricators . | . . . Repair Stations 1 | . 1 . Recycling Units . | . . . Scanalyzers . | . . . Garrison Access . | . . . Total Hacks 24 | . 24 . Successful 11 | . 11 . Failed 12 | . 12 . Catastrophic 1 | . 1 . Database Lockouts 1 | . 1 . Manual 12 | . 12 . Terminals 18 | . 18 . Fabricators . | . . . Repair Stations 6 | . 6 . Recycling Units . | . . . Scanalyzers . | . . . Garrison Access . | . . . Terminal Hacks 4 | . 4 . Robot Analysis 1 | . 1 . Unreport Threat 1 | . 1 . Locate Traps 1 | . 1 . Registered Components 1 | . 1 . Fabricator Hacks . | . . . Repair Station Hacks 2 | . 2 . Scan Component 1 | . 1 . Repair 1 | . 1 . Recycling Unit Hacks . | . . . Scanalyzer . | . . . Garrison Access Hacks . | . . . Unauthorized Hacks 5 | . 5 . Terminals 5 | . 5 . Track 1 | . 1 . Botnet 3 | . 3 . Operators 1 | . 1 . Fabricators . | . . . Repair Stations . | . . . Recycling Units . | . . . Scanalyzers . | . . . Garrison Access . | . . . Data Cores Recovered . | . . . Used . | . . . Hacking Detections 4 | . 4 . Full Trace Events . | . . . Feedback Events . | . . . Feedback Blocked . | . . . Robot Schematics Acquired . | . . . Robots Built . | . . . Authchips . | . . . Time . | . . . Total Robot Build Rating . | . . . Part Schematics Acquired . | . . . Parts Built . | . . . Authchips . | . . . Time . | . . . Total Part Build Rating . | . . . Parts Repaired 1 | . 1 . Time 26 | . 26 . Parts Recycled . | . . . Recycled Matter . | . . . Retrieved Matter . | . . . Retrieved Components . | . . . Parts Scanalyzed . | . . . Part Schematics Acquired . | . . . Parts Damaged . | . . . Bothacking | -11 -10 -10 ------------ Run | Yrd Mat Min Used RIF Installer . | . . . Robots Hacked . | . . . Non-combat . | . . . Combat . | . . . Robot Hacks Applied . | . . . Relay Couplers Released . | . . . Fabnet Peak Effective % . | . . . Robots Rewired . | . . . Allies Hacked . | . . . Hacks Repelled . | . . . Allies | -11 -10 -10 -------- Run | Yrd Mat Min Total Allies 2 | . . 2 Largest Group 2 | . . 2 Highest-Rated Group 44 | . . 44 Highest-Rated Ally 31 | . . 31 Total Orders . | . . . Ally Attacks 6 | . . 6 Total Damage 22 | . . 22 Kills 1 | . . 1 Allies Corrupted . | . . . Allies Melted . | . . . Intel | -11 -10 -10 ------- Run | Yrd Mat Min Active Infowar (turns) 166 | . 25 141 Structural 166 | . 25 141 Robot Analysis Total 1 | . 1 . Derelict Logs Recovered . | . . . Drone Launches . | . . . Drone Recoveries . | . . . Exploration | -11 -10 -10 ------------- Run | Yrd Mat Min Turns Passed 1713 | 77 1495 141 Spaces Moved 926 | 48 806 72 Core 18 | 17 . 1 Treads 721 | 8 713 . Legs . | . . . Wheels 187 | 23 93 71 Hover . | . . . Flight . | . . . Fastest Speed 50 | 50 100 110 Average Speed 146 | 92 153 113 Slowest Speed 350 | 160 160 350 Overloaded Moves . | . . . Propulsion Burnouts . | . . . Robots Hopped . | . . . Potential Cave-ins . | . . . Cave-ins Triggered . | . . . Exploration Rate (%) 36 | 4 87 18 Regions Visited 2 Branch Regions 1 Pre-discovered Areas . | . . . Known Exits Taken . | . . . Unknown Exits Taken 2 | 1 1 . Scrap Searched . | . . . Spaces Dug 1 | . 1 . Terrain Destroyed 89 | . 43 46 Melee 1 | . 1 . Projectile . | . . . AOE 88 | . 42 46 Terrain Rammed . | . . . Walls Destroyed . | . . . Machines Disabled . | . . . Actions | -11 -10 -10 --------- Run | Yrd Mat Min Total 1144 | 77 968 99 Wait 107 | 16 90 1 Move 924 | 47 805 72 Hop . | . . . Pick Up 18 | 5 13 . Fast Attach 5 | 4 1 . Attach 4 | 2 . 2 Detach . | . . . Swap 15 | 3 9 3 Drop . | . . . Fire 67 | . 46 21 Melee 3 | . 3 . Ram . | . . . Kick . | . . . Crush 1 | . 1 . Escape Stasis . | . . . Rewire . | . . . Trap . | . . . Miscellaneous . | . . . Route ------- -11/Scrapyard -10/Materials (discovered 3 exits: [*Mat x2] / [*Min]) -10/Mines History --------- Turn | Location | Event 11 | -11/Scrapyard | Discovered new exit (range 16) 78 | -11/Scrapyard | Entered Materials 314 | -10/Materials | Build established: Mutant 439 | -10/Materials | Discovered new exit (range 7) 527 | -10/Materials | Central database locked down 535 | -10/Materials | Discovered new exit (range 3) 1343 | -10/Materials | Discovered new exit (range 7) 1427 | -10/Materials | Repaired Assault Rifle 1573 | -10/Materials | Entered Mines 1574 | -10/Mines | Assembled infested the area 1595 | -10/Mines | Core integrity fell below 50% 1647 | -10/Mines | Destroyed 17 combat bots 1709 | -10/Mines | Core integrity fell below 20% 1714 | -10/Mines | Destroyed by D-53 Grenadier with Mini Grenade Launcher Last Messages --------------- 01608_ as-93181 destroyed. [Achievement: Exterminator] 01613_ The unstable cave ceiling collapses. 01614_ as-58869 destroyed. 01619_ The unstable cave ceiling collapses. 01626_ as-15056 destroyed. 01629_ The unstable cave ceiling collapses. 01629_ Acquired 15 matter. 01630_ Acquired 3 matter. 01634_ The unstable cave ceiling collapses. 01650_ as-47522 destroyed. 01653_ The unstable cave ceiling collapses. 01653_ Acquired 17 matter. 01671_ U-05 Engineer lays Concrete. 01706_ Lgt. Treads destroyed. 01708_ Lgt. Nuclear Core destroyed. 01708_ Assault Rifle destroyed. 01712_ Wheel destroyed. 01712_ R-06 Scavenger destroyed. 01712_ Assault Rifle destroyed. Map ----- +----------------------------------------------------+ | ?????????????????????????????????????????????? | | ???????????????????????????????######????????? | | ??????????????????????????????########???????? | | ??????????????????????????????### ###???????? | | ??????????????????????????????## ###??????? | | ????????????????????????????#### ####?????? | | ??????????????????????????###### ###?????? | | ??????????????????????????#### # ##?????? | | ??????????????????????????## ##?????? | | ???????????????????????##### ##?????? | | ???????????????????########## ###?????? | | ???????????????????###### #### #####?????? | | ???????????????????## # ####??????? | | ??????????????????### ## # # ###????????? | | ????????????????#####% #### # ###????????? | | ?????????########### ##?????????? | | ????????########## ##?????????? | | ????????### ## ## # ####?????????? | | ???????### ## ## # #####?????????? | | ???????### ## ## ###???????????? | | ???????## =###???????????? | | ???????## = ###???????????? | | ??????### * #######????????????? | | ?######## # #######????????????? | | ######## # ##?????????????????? | | ### @ ######?????????????? | | ## ## d ## ###????????????? | | ## ### ## d ###???????????? | | ## #### #### # ####?????????? | | ### ##### ## ######## ##?????????? | | ##### ###### # ######## ?????????? | | ?#########?## ??????????? | | ???######??## ?? ??????????? | | ???????????### ########????? ???????????? | | ???????????#################?????????????????? | | ????????????##########???????????????????????? | | ?????????????????????????????????????????????? | | ?????????????????????????????????????????????? | | ?????????????????????????????????????????????? | | ?????????????????????????????????????????????? | | ?????????????????????????????????????????????? | | ?????????????????????????????????????????????? | | ?????????????????????????????????????????????? | | ?????????????????????????????????????????????? | | ?????????????????????????????????????????????? | | ?????????????????????????????????????????????? | | ?????????????????????????????????????????????? | | ?????????????????????????????????????????????? | | ?????????????????????????????????????????????? | | ?????????????????????????????????????????????? | +----------------------------------------------------+ Best States ------------- Heat Dissipation 25 Energy Generation 14 Energy Capacity 250 Matter Stores 300 Matter Capacity 300 Sight Range 16 Terrain Scan Density 10 Evasion (%) 50 Recoil Reduction 2 Item Schematics ----------------- None Robot Schematics ------------------ None Fabricated ------------ Nothing Repaired ---------- Assault Rifle | 31% | -10/Materials Alien Tech Used ----------------- None Achievements -------------- Exterminator Challenges ------------ None Game ------ Seed AmuletHeatBiocell Manual? 0 Play Time 00:10:42 Cumulative 101.1 hours Start 2025.10.08 @ 17:03:27 End 2025.10.08 @ 17:12:26 Sessions 1 Manual Loads 0 Difficulty Rogue Special Mode None Game No. 162 Rogue 161 Adventurer 1 Explorer 0 Win Type - Total 1 Types 0/0/0/1/0/0/0/0/0/0 Lore% 57 Gallery% 52 Achievement% 49 Wizard Run 0 Options --------- Layout 1 ASCII 0 Keyboard 0 Movement Mouse Keybinds 0 Fullscreen 1 Font 24/Smallcaps Map View 50x35 Zoom Use 0% Tactical HUD 1 Map Filters NONE Filters NONE Steam 1 RUN: 5bc7edc1-62ab-408b-8a64-b8149dd5a5bc